[Event "*** Titled Tuesday 3|2 Blitz (Late)"]
[Site "Chess.com"]
[Date "2016.12.06"]
[Round "6"]
[White "Rumpel-VK"]
[Black "VitaliyBernadskiy"]
[Result "0-1"]
[WhiteElo "2455"]
[BlackElo "2564"]
[TimeControl "180+2"]
[EndTime "18:10:38 PST"]
[Termination "VitaliyBernadskiy won on time"]

1. e4 {[%clk 0:03:02]} 1... b6 {[%clk 0:02:59.8]} 2. d4 {[%clk 0:03:01.9]} 2...
Bb7 {[%clk 0:03:01.3]} 3. Bd3 {[%clk 0:03:03.1]} 3... e6 {[%clk 0:03:02.6]} 4.
Ne2 {[%clk 0:03:01]} 4... Nf6 {[%clk 0:03:03.8]} 5. f3 {[%clk 0:02:58.7]} 5...
c5 {[%clk 0:03:04.3]} 6. c3 {[%clk 0:02:59]} 6... d5 {[%clk 0:03:05.8]} 7. e5
{[%clk 0:02:59.3]} 7... Nfd7 {[%clk 0:03:07.3]} 8. O-O {[%clk 0:02:59.6]} 8...
Nc6 {[%clk 0:03:08.8]} 9. f4 {[%clk 0:02:55.9]} 9... g6 {[%clk 0:03:09.9]} 10.
Nd2 {[%clk 0:02:28.4]} 10... c4 {[%clk 0:03:10.4]} 11. Bc2 {[%clk 0:02:27.7]}
11... b5 {[%clk 0:03:12]} 12. b3 {[%clk 0:02:23]} 12... Nb6 {[%clk 0:03:10.5]}
13. a4 {[%clk 0:02:21.7]} 13... cxb3 {[%clk 0:03:10.5]} 14. Bxb3 {[%clk
0:02:16.3]} 14... bxa4 {[%clk 0:03:11.4]} 15. Bxa4 {[%clk 0:02:16.1]} 15... Nxa4
{[%clk 0:03:12.6]} 16. Qxa4 {[%clk 0:02:15.7]} 16... Qd7 {[%clk 0:03:03.4]} 17.
Ba3 {[%clk 0:02:07.7]} 17... Ne7 {[%clk 0:03:02.9]} 18. Qxd7+ {[%clk 0:02:02.4]}
18... Kxd7 {[%clk 0:03:03.4]} 19. Nb3 {[%clk 0:02:03.5]} 19... Bc8 {[%clk
0:02:57.2]} 20. Bd6 {[%clk 0:01:59.2]} 20... Bh6 {[%clk 0:02:43.5]} 21. Nc5+
{[%clk 0:01:59.1]} 21... Ke8 {[%clk 0:02:44]} 22. g4 {[%clk 0:01:52.1]} 22... g5
{[%clk 0:02:44.2]} 23. f5 {[%clk 0:01:44.3]} 23... exf5 {[%clk 0:02:43.4]} 24.
Bxe7 {[%clk 0:01:44.8]} 24... Kxe7 {[%clk 0:02:43.7]} 25. gxf5 {[%clk
0:01:45.4]} 25... g4 {[%clk 0:02:39.9]} 26. f6+ {[%clk 0:01:41.6]} 26... Kd8
{[%clk 0:02:40.1]} 27. Nf4 {[%clk 0:01:39.7]} 27... Rg8 {[%clk 0:02:29.3]} 28.
Kg2 {[%clk 0:01:34.5]} 28... a6 {[%clk 0:01:59.9]} 29. Nxd5 {[%clk 0:01:31.2]}
29... Bf8 {[%clk 0:01:57.1]} 30. Kg3 {[%clk 0:01:19.7]} 30... Bxc5 {[%clk
0:01:57.2]} 31. dxc5 {[%clk 0:01:20.5]} 31... Be6 {[%clk 0:01:57.2]} 32. Ne7
{[%clk 0:01:19.6]} 32... Rg5 {[%clk 0:01:54]} 33. Rfd1+ {[%clk 0:01:12]} 33...
Kc7 {[%clk 0:01:54.3]} 34. Kf4 {[%clk 0:01:12.3]} 34... Rh5 {[%clk 0:01:53.6]}
35. Nd5+ {[%clk 0:01:08.5]} 35... Kc6 {[%clk 0:01:52.2]} 36. Ra5 {[%clk
0:01:06.6]} 36... Bxd5 {[%clk 0:01:51.4]} 37. c4 {[%clk 0:01:04.7]} 37... Be6
{[%clk 0:01:45.7]} 38. Rd6+ {[%clk 0:01:05.4]} 38... Kc7 {[%clk 0:01:46.7]} 39.
c6 {[%clk 0:01:06.1]} 39... Rxh2 {[%clk 0:01:39.8]} 40. Ra3 {[%clk 0:01:04.1]}
40... Rf2+ {[%clk 0:01:38.8]} 41. Kg3 {[%clk 0:01:02.5]} 41... Rxf6 {[%clk
0:01:37.4]} 42. Rb3 {[%clk 0:00:58.9]} 42... Rf3+ {[%clk 0:01:37.3]} 43. Rxf3
{[%clk 0:00:59.8]} 43... gxf3 {[%clk 0:01:38.8]} 44. Kxf3 {[%clk 0:01:00.8]}
44... a5 {[%clk 0:01:40.3]} 45. Kf4 {[%clk 0:01:00.6]} 45... a4 {[%clk
0:01:41.5]} 46. Rd8 {[%clk 0:01:01.6]} 46... Rxd8 {[%clk 0:01:41.8]} 0-1

[Event "*** Titled Tuesday 3|2 Blitz (Late)"]
[Site "Chess.com"]
[Date "2016.12.06"]
[Round "6"]
[White "wonderfultime"]
[Black "dretch"]
[Result "1-0"]
[WhiteElo "2681"]
[BlackElo "2586"]
[TimeControl "180+2"]
[EndTime "18:11:41 PST"]
[Termination "wonderfultime won on time"]

1. d4 {[%clk 0:03:01.9]} 1... d5 {[%clk 0:03:01.1]} 2. Bf4 {[%clk 0:03:00.9]}
2... c5 {[%clk 0:03:01.6]} 3. c3 {[%clk 0:03:01.8]} 3... Nc6 {[%clk 0:02:58.3]}
4. e3 {[%clk 0:03:02.7]} 4... Nf6 {[%clk 0:02:59.2]} 5. Nf3 {[%clk 0:03:02.1]}
5... Qb6 {[%clk 0:02:58.5]} 6. Qc1 {[%clk 0:03:00.5]} 6... Bf5 {[%clk
0:02:56.3]} 7. Nbd2 {[%clk 0:03:01.5]} 7... e6 {[%clk 0:02:57.2]} 8. Be2 {[%clk
0:03:02.6]} 8... Be7 {[%clk 0:02:57.5]} 9. h3 {[%clk 0:03:03.5]} 9... O-O {[%clk
0:02:57.9]} 10. O-O {[%clk 0:03:04.6]} 10... Rac8 {[%clk 0:02:54]} 11. Nb3
{[%clk 0:02:53.8]} 11... c4 {[%clk 0:02:49.7]} 12. Nbd2 {[%clk 0:02:53.4]} 12...
Qd8 {[%clk 0:02:45.9]} 13. Ne5 {[%clk 0:02:49.8]} 13... Nxe5 {[%clk 0:02:44.1]}
14. Bxe5 {[%clk 0:02:50.1]} 14... Nd7 {[%clk 0:02:45.1]} 15. Bh2 {[%clk
0:02:51.2]} 15... b5 {[%clk 0:02:46.1]} 16. a3 {[%clk 0:02:52.2]} 16... a5
{[%clk 0:02:45]} 17. Re1 {[%clk 0:02:45.9]} 17... Qb6 {[%clk 0:02:35.3]} 18. Bf1
{[%clk 0:02:43.6]} 18... Nf6 {[%clk 0:02:35.7]} 19. Be5 {[%clk 0:02:37]} 19...
Bg6 {[%clk 0:02:35.4]} 20. f3 {[%clk 0:02:14.2]} 20... b4 {[%clk 0:02:20.6]} 21.
axb4 {[%clk 0:01:53.1]} 21... axb4 {[%clk 0:02:21.3]} 22. e4 {[%clk 0:01:55]}
22... Nd7 {[%clk 0:01:59.4]} 23. Bg3 {[%clk 0:01:53.5]} 23... Rfe8 {[%clk
0:01:42.4]} 24. Ra4 {[%clk 0:01:40.8]} 24... Qc6 {[%clk 0:01:15.7]} 25. Ra7
{[%clk 0:01:13.1]} 25... Bf8 {[%clk 0:01:05.2]} 26. Qa1 {[%clk 0:00:53.3]} 26...
Nb6 {[%clk 0:00:42.8]} 27. Qa6 {[%clk 0:00:24.3]} 27... Ra8 {[%clk 0:00:20.8]}
28. exd5 {[%clk 0:00:24.8]} 28... Rxa7 {[%clk 0:00:22.3]} 29. Qxa7 {[%clk
0:00:24.3]} 29... Nxd5 {[%clk 0:00:23.7]} 30. Nxc4 {[%clk 0:00:21.1]} 30... bxc3
{[%clk 0:00:22.8]} 31. Ne5 {[%clk 0:00:19.2]} 31... Qd6 {[%clk 0:00:15.7]} 32.
bxc3 {[%clk 0:00:18.3]} 32... Nxc3 {[%clk 0:00:16.8]} 33. Rc1 {[%clk 0:00:13.7]}
33... Nd5 {[%clk 0:00:11.1]} 34. Kh2 {[%clk 0:00:14.7]} 34... Qe7 {[%clk
0:00:06.2]} 35. Qa6 {[%clk 0:00:13.1]} 35... Qg5 {[%clk 0:00:06.5]} 36. Rc8
{[%clk 0:00:12.1]} 36... Qe7 {[%clk 0:00:06]} 37. Bb5 {[%clk 0:00:11.5]} 37...
Rxc8 {[%clk 0:00:05.9]} 38. Qxc8 {[%clk 0:00:13.4]} 38... Nb6 {[%clk 0:00:04]}
39. Qb8 {[%clk 0:00:14.1]} 39... Qd6 {[%clk 0:00:02.8]} 40. Qb7 {[%clk
0:00:13.2]} 40... Qxd4 {[%clk 0:00:02.6]} 41. Nc6 {[%clk 0:00:12.7]} 1-0

[Event "*** Titled Tuesday 3|2 Blitz (Late)"]
[Site "Chess.com"]
[Date "2016.12.06"]
[Round "6"]
[White "1e41-0"]
[Black "ecwinslow"]
[Result "1-0"]
[WhiteElo "2204"]
[BlackElo "2082"]
[TimeControl "180+2"]
[EndTime "18:11:44 PST"]
[Termination "1e41-0 won by checkmate"]

1. e4 {[%clk 0:03:02]} 1... c5 {[%clk 0:02:59.7]} 2. Nf3 {[%clk 0:03:03.2]} 2...
d6 {[%clk 0:03:00.4]} 3. d4 {[%clk 0:03:04.6]} 3... cxd4 {[%clk 0:03:01.4]} 4.
Nxd4 {[%clk 0:03:06.5]} 4... Nf6 {[%clk 0:03:02.2]} 5. Nc3 {[%clk 0:03:07.5]}
5... a6 {[%clk 0:03:02.9]} 6. h3 {[%clk 0:03:08.4]} 6... e5 {[%clk 0:03:00.6]}
7. Nde2 {[%clk 0:03:08.8]} 7... h5 {[%clk 0:03:01.2]} 8. Bg5 {[%clk 0:03:08.5]}
8... Nbd7 {[%clk 0:02:57.8]} 9. g3 {[%clk 0:03:08.3]} 9... Be7 {[%clk
0:02:39.5]} 10. Bg2 {[%clk 0:03:07.9]} 10... b5 {[%clk 0:02:37.5]} 11. Qd2
{[%clk 0:02:42.4]} 11... Bb7 {[%clk 0:02:29]} 12. a3 {[%clk 0:02:23.8]} 12...
Rc8 {[%clk 0:02:23.3]} 13. O-O-O {[%clk 0:02:16.2]} 13... Qb6 {[%clk 0:02:13.7]}
14. g4 {[%clk 0:02:12]} 14... Qxf2 {[%clk 0:01:52.8]} 15. Rdg1 {[%clk
0:01:24.9]} 15... Qc5 {[%clk 0:01:43.1]} 16. Be3 {[%clk 0:01:23]} 16... Qc4
{[%clk 0:01:32.4]} 17. gxh5 {[%clk 0:01:09.2]} 17... Nxe4 {[%clk 0:01:08.4]} 18.
Bxe4 {[%clk 0:00:52.2]} 18... Bxe4 {[%clk 0:01:06.7]} 19. Nxe4 {[%clk
0:00:54.1]} 19... Qxe4 {[%clk 0:01:04.4]} 20. Nc3 {[%clk 0:00:54.4]} 20... Qc4
{[%clk 0:00:53.2]} 21. Nd5 {[%clk 0:00:50.8]} 21... Nf6 {[%clk 0:00:37.8]} 22.
Nxe7 {[%clk 0:00:44.9]} 22... Kxe7 {[%clk 0:00:37.8]} 23. Rxg7 {[%clk
0:00:38.5]} 23... Qa2 {[%clk 0:00:25.6]} 24. Qg2 {[%clk 0:00:17.9]} 24... d5
{[%clk 0:00:15.4]} 25. Bg5 {[%clk 0:00:16.2]} 25... Qa1+ {[%clk 0:00:13.7]} 26.
Kd2 {[%clk 0:00:17]} 26... Qxb2 {[%clk 0:00:08.6]} 27. Bxf6+ {[%clk 0:00:17.2]}
27... Kd6 {[%clk 0:00:07.8]} 28. Rc1 {[%clk 0:00:13.9]} 28... Rxh5 {[%clk
0:00:05.9]} 29. Qg4 {[%clk 0:00:13.1]} 29... Qc3+ {[%clk 0:00:05.3]} 30. Kd1
{[%clk 0:00:14.1]} 30... Rxh3 {[%clk 0:00:04.9]} 31. Bxe5+ {[%clk 0:00:08.9]}
31... Qxe5 {[%clk 0:00:05.2]} 32. Qxh3 {[%clk 0:00:10]} 32... Qxg7 {[%clk
0:00:03.6]} 33. Qxc8 {[%clk 0:00:11]} 33... Qd4+ {[%clk 0:00:04.1]} 34. Ke2
{[%clk 0:00:11.3]} 34... Qe4+ {[%clk 0:00:04.8]} 35. Kf2 {[%clk 0:00:07.7]}
35... Qf4+ {[%clk 0:00:05.3]} 36. Kg2 {[%clk 0:00:09.3]} 36... Qxc1 {[%clk
0:00:05]} 37. Qd8+ {[%clk 0:00:09.4]} 37... Ke5 {[%clk 0:00:05.2]} 38. Qe7+
{[%clk 0:00:10.4]} 38... Kd4 {[%clk 0:00:06.1]} 39. Qf6+ {[%clk 0:00:11.7]}
39... Kc4 {[%clk 0:00:06.7]} 40. Qc6+ {[%clk 0:00:10.7]} 40... Kd4 {[%clk
0:00:07.3]} 41. Qf6+ {[%clk 0:00:09.5]} 41... Kc5 {[%clk 0:00:08]} 42. Qe7+
{[%clk 0:00:08]} 42... Kc4 {[%clk 0:00:08.7]} 43. Qb4# {[%clk 0:00:08.9]} 1-0

[Event "*** Titled Tuesday 3|2 Blitz (Late)"]
[Site "Chess.com"]
[Date "2016.12.06"]
[Round "6"]
[White "Divertissement"]
[Black "Kawhi_Leonard2"]
[Result "1-0"]
[WhiteElo "2426"]
[BlackElo "2232"]
[TimeControl "180+2"]
[EndTime "18:11:50 PST"]
[Termination "Divertissement won on time"]

1. e4 {[%clk 0:03:02]} 1... c5 {[%clk 0:03:00.8]} 2. Nf3 {[%clk 0:03:00.7]} 2...
d6 {[%clk 0:03:01.9]} 3. d4 {[%clk 0:03:01.7]} 3... cxd4 {[%clk 0:03:03.1]} 4.
Nxd4 {[%clk 0:03:03.6]} 4... Nf6 {[%clk 0:03:04]} 5. Nc3 {[%clk 0:03:05]} 5...
g6 {[%clk 0:03:05.5]} 6. Be3 {[%clk 0:03:02.3]} 6... Bg7 {[%clk 0:03:06.7]} 7.
f3 {[%clk 0:03:03.7]} 7... Nc6 {[%clk 0:03:07.8]} 8. Bc4 {[%clk 0:03:04.9]} 8...
O-O {[%clk 0:03:09.2]} 9. h4 {[%clk 0:03:06.2]} 9... h5 {[%clk 0:03:08.4]} 10.
Qd2 {[%clk 0:03:06.8]} 10... Bd7 {[%clk 0:03:09.3]} 11. Bb3 {[%clk 0:03:06.4]}
11... Ne5 {[%clk 0:03:08.9]} 12. O-O-O {[%clk 0:03:06.9]} 12... Rc8 {[%clk
0:03:09.9]} 13. Kb1 {[%clk 0:03:08]} 13... Nc4 {[%clk 0:03:03.7]} 14. Bxc4
{[%clk 0:03:07.8]} 14... Rxc4 {[%clk 0:03:04.6]} 15. b3 {[%clk 0:03:03.4]} 15...
Rc5 {[%clk 0:03:04.6]} 16. Nde2 {[%clk 0:02:57.4]} 16... Rc8 {[%clk 0:02:56]}
17. Bh6 {[%clk 0:02:45.6]} 17... Qa5 {[%clk 0:02:38.2]} 18. Nd5 {[%clk
0:02:27.1]} 18... Qxd2 {[%clk 0:02:37.8]} 19. Nxe7+ {[%clk 0:02:16]} 19... Kh7
{[%clk 0:02:38.7]} 20. Bxd2 {[%clk 0:02:16.1]} 20... Rce8 {[%clk 0:02:39.7]} 21.
Bb4 {[%clk 0:02:08.6]} 21... Rxe7 {[%clk 0:02:40.2]} 22. Bxd6 {[%clk 0:02:10.3]}
22... Rfe8 {[%clk 0:02:41.4]} 23. Bxe7 {[%clk 0:02:11.5]} 23... Rxe7 {[%clk
0:02:42.6]} 24. Nf4 {[%clk 0:02:09.6]} 24... Bc6 {[%clk 0:02:40.4]} 25. Rhe1
{[%clk 0:02:05.1]} 25... Nd7 {[%clk 0:02:31.4]} 26. Nd5 {[%clk 0:02:04.5]} 26...
Re8 {[%clk 0:02:16.5]} 27. Nb4 {[%clk 0:02:04.7]} 27... Ne5 {[%clk 0:02:08.1]}
28. Nxc6 {[%clk 0:02:05.1]} 28... bxc6 {[%clk 0:01:56.9]} 29. f4 {[%clk
0:02:04.4]} 29... Ng4 {[%clk 0:01:51.8]} 30. Rd7 {[%clk 0:02:00.9]} 30... Nf6
{[%clk 0:01:49]} 31. Rxf7 {[%clk 0:01:38.5]} 31... Nxe4 {[%clk 0:01:48.6]} 32.
Kc1 {[%clk 0:01:38.3]} 32... a5 {[%clk 0:00:51.9]} 33. f5 {[%clk 0:01:28]} 33...
gxf5 {[%clk 0:00:50.3]} 34. Rxf5 {[%clk 0:01:29.9]} 34... Bh6+ {[%clk
0:00:48.1]} 35. Kb2 {[%clk 0:01:30]} 35... Bg7+ {[%clk 0:00:45.4]} 36. Ka3
{[%clk 0:01:18.7]} 36... Bc3 {[%clk 0:00:45.7]} 37. Rd1 {[%clk 0:01:00.2]} 37...
Bb4+ {[%clk 0:00:42]} 38. Kb2 {[%clk 0:01:00.9]} 38... Bc3+ {[%clk 0:00:39.8]}
39. Kc1 {[%clk 0:01:02]} 39... Kg6 {[%clk 0:00:32.2]} 40. Rf3 {[%clk 0:00:52.7]}
40... Re5 {[%clk 0:00:22.9]} 41. Rd8 {[%clk 0:00:40.6]} 41... Bb4 {[%clk
0:00:06.1]} 42. Kb2 {[%clk 0:00:34.5]} 42... Rc5 {[%clk 0:00:05.5]} 43. c4
{[%clk 0:00:27]} 43... Re5 {[%clk 0:00:02.9]} 44. Rg8+ {[%clk 0:00:23.2]} 44...
Kh7 {[%clk 0:00:03.1]} 45. Rd8 {[%clk 0:00:21.5]} 1-0

[Event "*** Titled Tuesday 3|2 Blitz (Late)"]
[Site "Chess.com"]
[Date "2016.12.06"]
[Round "6"]
[White "GeorgMeier"]
[Black "gmshanmeruga"]
[Result "1-0"]
[WhiteElo "2769"]
[BlackElo "2326"]
[TimeControl "180+2"]
[EndTime "18:12:17 PST"]
[Termination "GeorgMeier won by checkmate"]

1. Nf3 {[%clk 0:03:02]} 1... Nf6 {[%clk 0:02:57.9]} 2. g3 {[%clk 0:03:03.4]}
2... g6 {[%clk 0:02:59.2]} 3. Bg2 {[%clk 0:03:04.6]} 3... Bg7 {[%clk 0:03:00.6]}
4. O-O {[%clk 0:03:04.2]} 4... O-O {[%clk 0:03:01.5]} 5. d4 {[%clk 0:03:05.8]}
5... d5 {[%clk 0:03:02.7]} 6. c4 {[%clk 0:03:05.1]} 6... c6 {[%clk 0:03:04]} 7.
cxd5 {[%clk 0:03:05.3]} 7... cxd5 {[%clk 0:03:04.9]} 8. Nc3 {[%clk 0:03:06.8]}
8... Nc6 {[%clk 0:03:06.3]} 9. Ne5 {[%clk 0:03:07.7]} 9... Bf5 {[%clk
0:03:04.3]} 10. Be3 {[%clk 0:03:06.3]} 10... Rc8 {[%clk 0:02:39]} 11. Rc1 {[%clk
0:03:03.9]} 11... Ne4 {[%clk 0:02:36.7]} 12. Nxe4 {[%clk 0:03:02.3]} 12... Bxe4
{[%clk 0:02:32.2]} 13. Nxc6 {[%clk 0:02:52.6]} 13... Rxc6 {[%clk 0:02:28.4]} 14.
Rxc6 {[%clk 0:02:53.5]} 14... bxc6 {[%clk 0:02:29.1]} 15. Bxe4 {[%clk
0:02:51.3]} 15... dxe4 {[%clk 0:02:30.1]} 16. Qa4 {[%clk 0:02:52.9]} 16... Qb6
{[%clk 0:02:12.6]} 17. b3 {[%clk 0:01:23.9]} 17... Qb7 {[%clk 0:02:07.5]} 18.
Rc1 {[%clk 0:01:23.9]} 18... Rc8 {[%clk 0:02:05]} 19. Rc5 {[%clk 0:01:13]} 19...
e6 {[%clk 0:01:59.4]} 20. Ra5 {[%clk 0:01:12.2]} 20... Ra8 {[%clk 0:01:56.7]}
21. Ra6 {[%clk 0:01:13]} 21... h5 {[%clk 0:01:38]} 22. Qxc6 {[%clk 0:00:52.2]}
22... Qxc6 {[%clk 0:01:34.5]} 23. Rxc6 {[%clk 0:00:54.1]} 23... a5 {[%clk
0:01:26.5]} 24. Rc4 {[%clk 0:00:52.7]} 24... Rd8 {[%clk 0:01:18.7]} 25. h3
{[%clk 0:00:43.9]} 25... Rd5 {[%clk 0:01:10.6]} 26. Kg2 {[%clk 0:00:43.5]} 26...
e5 {[%clk 0:01:06.4]} 27. dxe5 {[%clk 0:00:43.3]} 27... Bxe5 {[%clk 0:01:02.1]}
28. Rxe4 {[%clk 0:00:43.4]} 28... Bd6 {[%clk 0:00:57.6]} 29. Rd4 {[%clk
0:00:44.2]} 29... Rxd4 {[%clk 0:00:54]} 30. Bxd4 {[%clk 0:00:46.1]} 30... f5
{[%clk 0:00:51.5]} 31. f4 {[%clk 0:00:43.8]} 31... Kf7 {[%clk 0:00:48.6]} 32.
Kf3 {[%clk 0:00:45.3]} 32... Ke6 {[%clk 0:00:49]} 33. e4 {[%clk 0:00:46.5]}
33... fxe4+ {[%clk 0:00:43.1]} 34. Kxe4 {[%clk 0:00:47.5]} 34... Bb4 {[%clk
0:00:42.3]} 35. g4 {[%clk 0:00:47.5]} 35... hxg4 {[%clk 0:00:40.1]} 36. hxg4
{[%clk 0:00:49.4]} 36... Ke7 {[%clk 0:00:34.7]} 37. Kd5 {[%clk 0:00:49.7]} 37...
Bd2 {[%clk 0:00:27.1]} 38. f5 {[%clk 0:00:50.3]} 38... gxf5 {[%clk 0:00:28.4]}
39. gxf5 {[%clk 0:00:52.2]} 39... a4 {[%clk 0:00:19.1]} 40. Bb2 {[%clk
0:00:28.7]} 40... Kf7 {[%clk 0:00:12.9]} 41. Be5 {[%clk 0:00:24.2]} 41... a3
{[%clk 0:00:10.1]} 42. Kc4 {[%clk 0:00:23.2]} 42... Bc1 {[%clk 0:00:10.2]} 43.
b4 {[%clk 0:00:24.2]} 43... Ke7 {[%clk 0:00:11]} 44. b5 {[%clk 0:00:25.1]} 44...
Kd7 {[%clk 0:00:12.5]} 45. Kd5 {[%clk 0:00:26.3]} 45... Bb2 {[%clk 0:00:12.4]}
46. f6 {[%clk 0:00:23.6]} 46... Ke8 {[%clk 0:00:10.9]} 47. b6 {[%clk 0:00:24.5]}
47... Kd7 {[%clk 0:00:09.6]} 48. f7 {[%clk 0:00:24.9]} 48... Ke7 {[%clk
0:00:10.7]} 49. b7 {[%clk 0:00:26.2]} 49... Kxf7 {[%clk 0:00:11]} 50. b8=Q
{[%clk 0:00:27.2]} 50... Bxe5 {[%clk 0:00:10.1]} 51. Qxe5 {[%clk 0:00:28.1]}
51... Kg6 {[%clk 0:00:11.4]} 52. Kc4 {[%clk 0:00:29.4]} 52... Kf7 {[%clk
0:00:11.9]} 53. Kb3 {[%clk 0:00:31.3]} 53... Kg6 {[%clk 0:00:13.3]} 54. Kxa3
{[%clk 0:00:33.2]} 54... Kf7 {[%clk 0:00:15.2]} 55. Kb4 {[%clk 0:00:35.1]} 55...
Kg6 {[%clk 0:00:16.7]} 56. a4 {[%clk 0:00:37]} 56... Kf7 {[%clk 0:00:18.3]} 57.
Kc5 {[%clk 0:00:38.9]} 57... Kg6 {[%clk 0:00:19.5]} 58. Kd5 {[%clk 0:00:40.8]}
58... Kh7 {[%clk 0:00:21]} 59. Qg3 {[%clk 0:00:41.7]} 59... Kh6 {[%clk
0:00:22.2]} 60. Ke6 {[%clk 0:00:43.6]} 60... Kh7 {[%clk 0:00:23.8]} 61. Kf6
{[%clk 0:00:45.5]} 61... Kh8 {[%clk 0:00:21.2]} 62. Qg7# {[%clk 0:00:47.1]} 1-0

[Event "*** Titled Tuesday 3|2 Blitz (Late)"]
[Site "Chess.com"]
[Date "2016.12.06"]
[Round "6"]
[White "capatl"]
[Black "SwiftyMcBishop"]
[Result "1-0"]
[WhiteElo "2388"]
[BlackElo "2110"]
[TimeControl "180+2"]
[EndTime "18:12:29 PST"]
[Termination "capatl won by resignation"]

1. c4 {[%clk 0:03:02]} 1... e6 {[%clk 0:03:00.2]} 2. d4 {[%clk 0:02:49.1]} 2...
Nf6 {[%clk 0:02:57.7]} 3. Nc3 {[%clk 0:02:49.2]} 3... d5 {[%clk 0:02:57.3]} 4.
Nf3 {[%clk 0:02:49.1]} 4... Be7 {[%clk 0:02:56.1]} 5. Bg5 {[%clk 0:02:49.1]}
5... O-O {[%clk 0:02:57.1]} 6. e3 {[%clk 0:02:49.1]} 6... c5 {[%clk 0:02:58.1]}
7. cxd5 {[%clk 0:02:48.4]} 7... Nxd5 {[%clk 0:02:53.1]} 8. Bxe7 {[%clk 0:02:46]}
8... Qxe7 {[%clk 0:02:55]} 9. Nxd5 {[%clk 0:02:44.4]} 9... exd5 {[%clk
0:02:56.9]} 10. dxc5 {[%clk 0:02:43.1]} 10... Qxc5 {[%clk 0:02:58.4]} 11. Qd4
{[%clk 0:02:44.3]} 11... Qd6 {[%clk 0:02:53.5]} 12. Bd3 {[%clk 0:02:42.6]} 12...
Nc6 {[%clk 0:02:54.2]} 13. Qh4 {[%clk 0:02:42.9]} 13... h6 {[%clk 0:02:51.1]}
14. O-O {[%clk 0:02:42.9]} 14... Be6 {[%clk 0:02:38.4]} 15. a3 {[%clk
0:02:42.8]} 15... Rac8 {[%clk 0:02:37.9]} 16. Rfd1 {[%clk 0:02:31.4]} 16... Ne5
{[%clk 0:02:33.9]} 17. Qf4 {[%clk 0:02:06.3]} 17... Nxf3+ {[%clk 0:02:20.4]} 18.
Qxf3 {[%clk 0:02:07.3]} 18... Qe5 {[%clk 0:02:18.8]} 19. Rab1 {[%clk 0:02:04.1]}
19... Rc5 {[%clk 0:02:10.3]} 20. h3 {[%clk 0:02:04.7]} 20... Rfc8 {[%clk
0:02:10.2]} 21. Qe2 {[%clk 0:01:56.8]} 21... a6 {[%clk 0:02:06.8]} 22. Qd2
{[%clk 0:01:54.3]} 22... Qg5 {[%clk 0:02:05]} 23. Kh2 {[%clk 0:01:47.2]} 23...
Kh8 {[%clk 0:01:58.6]} 24. Rbc1 {[%clk 0:01:37.7]} 24... Rxc1 {[%clk 0:01:42.7]}
25. Rxc1 {[%clk 0:01:37.7]} 25... Rd8 {[%clk 0:01:43.6]} 26. Qc3 {[%clk
0:01:23.7]} 26... Qh4 {[%clk 0:01:23.8]} 27. Qc7 {[%clk 0:01:10.8]} 27... Re8
{[%clk 0:00:58.2]} 28. Rc2 {[%clk 0:00:56]} 28... b5 {[%clk 0:00:45.3]} 29. Qc6
{[%clk 0:00:51.9]} 29... Rd8 {[%clk 0:00:30.4]} 30. Qxa6 {[%clk 0:00:49.2]}
30... d4 {[%clk 0:00:31.7]} 31. Qxb5 {[%clk 0:00:42.7]} 31... dxe3 {[%clk
0:00:18.7]} 32. fxe3 {[%clk 0:00:44.6]} 32... Qe7 {[%clk 0:00:14.4]} 33. Be2
{[%clk 0:00:27.5]} 33... Qd6+ {[%clk 0:00:11.7]} 34. Kg1 {[%clk 0:00:28.4]}
34... Qg3 {[%clk 0:00:07.9]} 35. Qh5 {[%clk 0:00:19.2]} 35... Qxe3+ {[%clk
0:00:07.8]} 36. Kh1 {[%clk 0:00:18.8]} 36... Qf4 {[%clk 0:00:06.1]} 37. Qf3
{[%clk 0:00:18.2]} 37... Qd6 {[%clk 0:00:06.4]} 38. Rc1 {[%clk 0:00:18.2]} 38...
Bd5 {[%clk 0:00:07.4]} 39. Qg4 {[%clk 0:00:19.2]} 39... Qe5 {[%clk 0:00:06.4]}
40. Rb1 {[%clk 0:00:16.9]} 40... Qe3 {[%clk 0:00:04.4]} 41. Bf3 {[%clk
0:00:16.9]} 41... Be6 {[%clk 0:00:04.6]} 42. Qh4 {[%clk 0:00:17.5]} 42... Qd2
{[%clk 0:00:03.8]} 43. Rd1 {[%clk 0:00:17.5]} 43... Qxd1+ {[%clk 0:00:03.2]} 44.
Bxd1 {[%clk 0:00:19.4]} 44... Rxd1+ {[%clk 0:00:04.6]} 45. Kh2 {[%clk
0:00:21.2]} 45... Rb1 {[%clk 0:00:05.7]} 46. Qd4 {[%clk 0:00:21.7]} 46... Ra1
{[%clk 0:00:06.6]} 47. a4 {[%clk 0:00:21.2]} 47... Ra2 {[%clk 0:00:06.9]} 48.
Qb4 {[%clk 0:00:18]} 48... Kh7 {[%clk 0:00:07.3]} 49. a5 {[%clk 0:00:18.3]}
49... Bd5 {[%clk 0:00:06.6]} 50. Qb5 {[%clk 0:00:18.7]} 50... Be6 {[%clk
0:00:07]} 51. a6 {[%clk 0:00:18.9]} 51... Ra1 {[%clk 0:00:07.6]} 52. Qd3+ {[%clk
0:00:19]} 52... g6 {[%clk 0:00:08.1]} 53. b4 {[%clk 0:00:20.3]} 53... Ra2 {[%clk
0:00:06.4]} 54. b5 {[%clk 0:00:21.3]} 54... Kg7 {[%clk 0:00:04.8]} 55. b6 {[%clk
0:00:21.6]} 55... Rb2 {[%clk 0:00:04]} 56. Qd4+ {[%clk 0:00:22.7]} 1-0